bitfinex-derivatives/quotes_SOLF0:USTF0_20241227
["timestamp","ask_amount","ask_price","bid_price","bid_amount"]
[1735267166394,2.6318,190.26,190.22,99.77765067]
[1735267166895,2.6321,190.23,190.18,2.6328]
[1735267167095,2.6321,190.23,190.19,3.12]
[1735267169995,7.65311304,190.24,190.19,3.12]
[1735267170200,2.6324,190.22,190.19,3.12]
[1735267173902,2.6324,190.22,190.18,2.6328]
[1735267174407,2.6324,190.22,190.18,5.7528]
[1735267183016,2.6324,190.22,190.18,2.6328]
[1735267185215,3.2571,190.29,190.17,3.12]
[1735267185514,7.65311304,190.23,190.17,3.12]
[1735267186413,2.6324,190.22,190.18,2.6328]
[1735267186809,7.65311304,190.23,190.17,3.12]
[1735267187515,2.6325,190.21,190.17,5.7529]
[1735267188514,7.65311304,190.23,190.17,3.12]
[1735267188811,7.65311304,190.19,190.14,3.12]
[1735267189709,2.6328,190.18,190.14,2.6334]
[1735267190716,7.65311304,190.19,190.14,2.6334]
[1735267191015,10.28611304,190.17,190.13,2.6335]
[1735267194817,2.6326,190.19,190.15,2.6331]
[1735267195018,7.65311304,190.22,190.14,7.65311304]
[1735267195213,3.2571,190.29,190.16,7.65311304]
[1735267195411,10.28511304,190.24,190.2,2.6324]
[1735267195618,7.65311304,190.24,190.2,2.6324]
[1735267196120,2.632,190.23,190.19,5.7525]
[1735267199921,7.65311304,190.22,190.17,2.6327]
[1735267200221,7.65311304,190.22,190.16,10.77311304]
[1735267201419,7.65311304,190.22,190.16,3.12]
[1735267202515,2.6325,190.2,190.16,5.753]
[1735267204730,3.2571,190.29,190.18,7.65311304]
[1735267204923,3.2571,190.29,190.2,7.65311304]
[1735267205226,7.65311304,190.27,190.21,3.12]
[1735267205621,2.6317,190.26,190.21,5.7523]
[1735267205818,2.6317,190.26,190.21,3.12]
[1735267207626,2.6317,190.26,190.22,2.6321]
[1735267212636,2.6318,190.25,190.21,2.6322]
[1735267212831,7.65311304,190.25,190.21,3.12]
[1735267213031,7.65311304,190.23,190.19,3.12]
[1735267213341,2.6322,190.22,190.17,6.0048]
[1735267213635,7.65311304,190.23,190.17,9.1248]
[1735267213836,2.6325,190.2,190.14,2.6331]
[1735267214039,2.6325,190.2,190.16,3.12]
[1735267214836,2.6327,190.18,190.16,3.12]
[1735267215032,7.65311304,190.19,190.15,3.12]
[1735267215637,10.28561304,190.19,190.15,3.12]
[1735267218144,3.2571,190.29,190.15,3.12]
[1735267218338,7.65311304,190.22,190.17,2.6327]
[1735267218544,6.3771,190.29,190.17,2.6327]
[1735267218841,10.28531304,190.22,190.17,2.6327]
[1735267219340,2.6322,190.22,190.17,2.6327]
[1735267219644,7.65311304,190.21,190.16,2.6329]
[1735267221541,2.6324,190.2,190.16,2.6329]
[1735267227658,2.6326,190.19,190.15,3.12]
[1735267227843,7.65311304,190.19,190.12,10.92391304]
[1735267228050,7.65311304,190.19,190.14,3.12]
[1735267228453,3.12,190.24,190.14,3.12]
[1735267228751,7.65311304,190.21,190.14,10.77311304]
[1735267229154,10.28551304,190.21,190.16,2.6328]
[1735267229751,2.6325,190.2,190.16,2.6328]
[1735267231053,2.6322,190.22,190.17,2.6327]
[1735267231354,3.12,190.24,190.16,7.65311304]
[1735267231355,7.65311304,190.24,190.16,7.65311304]
[1735267232255,2.6321,190.23,190.16,7.65311304]
[1735267232652,2.6324,190.2,190.17,3.12]
[1735267232955,2.6324,190.2,190.16,3.12]
[1735267233155,7.65311304,190.22,190.16,3.12]
[1735267233356,2.6323,190.21,190.17,2.6327]
[1735267233855,10.28541304,190.22,190.18,2.6327]
[1735267234662,7.65311304,190.22,190.16,3.12]
[1735267235263,7.65311304,190.24,190.16,3.12]
[1735267236460,2.6322,190.22,190.18,2.6327]
[1735267237165,2.6325,190.2,190.16,5.7529]
[1735267237358,7.65311304,190.22,190.16,3.12]
[1735267237653,7.65311304,190.2,190.16,3.12]
[1735267238050,2.6326,190.19,190.16,3.12]
[1735267240060,7.65311304,190.2,190.13,7.65311304]
[1735267240252,7.65311304,190.18,190.13,3.12]
[1735267242565,2.6329,190.17,190.13,5.7533]
[1735267243967,2.6331,190.16,190.13,3.12]
[1735267245465,2.6331,190.16,190.12,5.7535]
[1735267245968,7.65311304,190.18,190.11,13.40671304]
[1735267246959,2.633,190.16,190.11,13.40671304]
[1735267248675,219.96722554,190.4,190.13,7.65311304]
[1735267248963,2.6326,190.19,190.14,2.6331]
[1735267249871,7.65311304,190.19,190.14,2.6331]
[1735267250071,2.6327,190.18,190.14,2.6331]
[1735267250870,2.6327,190.18,190.11,10.77311304]
[1735267251072,2.6327,190.18,190.13,2.6333]
[1735267251269,2.6329,190.16,190.13,3.12]
[1735267251471,7.65311304,190.17,190.11,3.12]
[1735267251873,2.6331,190.15,190.11,3.12]
[1735267254877,10.28621304,190.15,190.11,3.12]
[1735267257777,2.6331,190.15,190.11,3.12]
[1735267257983,2.6331,190.15,190.11,5.7536]
[1735267259985,7.65311304,190.17,190.11,3.12]
[1735267261479,2.6332,190.15,190.11,3.12]
[1735267262781,7.65311304,190.18,190.12,2.6335]
[1735267262980,7.65311304,190.18,190.11,10.77311304]
[1735267263685,2.633,190.16,190.12,2.6334]
[1735267264582,2.6332,190.14,190.11,3.12]
[1735267266980,7.65311304,190.16,190.1,94.81529232]
[1735267267181,2.6334,190.13,190.1,94.81529232]
[1735267267388,7.65311304,190.16,190.1,94.81529232]
[1735267267784,2.6333,190.14,190.1,94.81529232]
[1735267273592,2.6335,190.12,190.1,92.18159232]
[1735267274897,7.65311304,190.14,190.1,92.18159232]
[1735267274898,2.6334,190.13,190.1,92.18159232]
[1735267277701,10.28631304,190.14,190.1,2.6337]
[1735267280000,7.65311304,190.14,190.09,3.12]
[1735267280204,2.6337,190.11,190.08,3.12]
[1735267280503,7.65311304,190.1,190.08,3.12]
[1735267281403,7.65311304,190.1,190.08,5.754]
[1735267281703,10.28661304,190.12,190.08,5.754]
[1735267284008,7.65311304,190.12,190.08,3.12]
[1735267284306,7.65311304,190.1,190.08,3.12]
[1735267288203,7.65311304,190.12,190.08,3.12]
[1735267288409,72.04189675,190.16,190.08,3.12]
[1735267288609,7.65311304,190.15,190.08,3.12]
[1735267289406,10.28621304,190.15,190.11,2.6335]
[1735267293911,10.28661304,190.13,190.08,2.6339]
[1735267294209,7.65311304,190.11,190.05,92.20538379]
[1735267294407,7.65311304,190.11,190.05,95.32538379]
[1735267294602,7.65311304,190.11,190.06,2.6343]
[1735267295415,2.6338,190.1,190.06,2.6343]
[1735267298014,10.28671304,190.11,190.07,2.6342]
[1735267298217,75.16189675,190.16,190.05,102.97849683]
[1735267298419,7.65311304,190.12,190.05,102.97849683]
[1735267299120,72.04189675,190.16,190.07,7.65311304]
[1735267299419,7.65311304,190.15,190.07,7.65311304]
[1735267299619,7.65311304,190.15,190.05,92.20538379]
[1735267299814,7.65311304,190.13,190.06,10.77311304]
[1735267300410,10.28661304,190.13,190.09,2.6338]
[1735267300615,7.65311304,190.15,190.08,7.65311304]
[1735267301023,7.65311304,190.15,190.1,2.6338]
[1735267301024,10.28631304,190.15,190.1,2.6338]
[1735267305925,10.28631304,190.15,190.11,2.6336]
[1735267306828,10.28631304,190.15,190.1,2.6337]
[1735267312032,72.04189675,190.16,190.09,5.7539]
[1735267312033,7.65311304,190.13,190.09,5.7539]
[1735267312329,7.65311304,190.13,190.09,3.12]
[1735267313231,7.65311304,190.13,190.1,2.6338]
[1735267313432,7.65311304,190.15,190.09,3.12]
[1735267313833,7.65311304,190.15,190.12,2.6336]
[1735267314033,7.65311304,190.15,190.09,3.12]
[1735267315433,10.28641304,190.15,190.1,2.6337]
[1735267316336,2.6334,190.14,190.1,2.6337]
[1735267317031,7.65311304,190.15,190.09,3.12]
[1735267317333,7.65311304,190.15,190.09,5.7539]
[1735267317334,2.6334,190.13,190.09,5.7539]
[1735267317636,2.6333,190.14,190.1,2.6338]
[1735267319736,7.65311304,190.13,190.05,92.20538379]
[1735267319936,2.6339,190.1,190.06,5.7543]
[1735267320138,7.65311304,190.13,190.06,3.12]
[1735267321037,2.6337,190.11,190.07,2.6341]
[1735267328642,2.634,190.09,190.06,3.12]
[1735267328837,7.65311304,190.1,190.05,92.20538379]
[1735267329037,7.65311304,190.1,190.05,95.32538379]
[1735267329444,7.65311304,190.1,190.05,92.20538379]
[1735267329643,7.65311304,190.1,190.05,95.32538379]
[1735267330347,2.6342,190.08,190.05,95.32538379]
[1735267332144,2.6342,190.08,190.03,3.12]
[1735267332145,7.65311304,190.08,190.03,3.12]
[1735267332549,2.6346,190.05,190.02,2.61651327]
[1735267332747,7.65311304,190.06,190.02,2.61651327]
[1735267332948,7.65311304,190.04,190.0,3.12]
[1735267333139,2.6349,190.02,189.98,2.6354]
[1735267333335,2.6349,190.02,189.99,3.12]
[1735267335239,10.28791304,190.04,189.99,3.12]
[1735267335642,7.65311304,190.04,189.99,3.12]
[1735267336247,2.6348,190.03,189.99,3.12]
[1735267336948,2.6348,190.03,189.99,13.40831304]
[1735267338647,7.65311304,190.04,189.97,54.74]
[1735267338947,7.65311304,190.0,189.96,3.12]
[1735267339347,7.65311304,190.0,189.95,2.61751067]
[1735267339542,7.65311304,190.0,189.94,3.12]
[1735267341145,2.6353,190.0,189.95,2.6357]
[1735267341342,7.65311304,190.02,189.96,7.65311304]
[1735267342451,7.65311304,190.02,189.98,2.6354]
[1735267343550,7.65311304,190.02,189.94,3.12]
[1735267343754,2.6354,189.99,189.94,2.6359]
[1735267343958,2.6354,189.99,189.94,5.7559]
[1735267344858,10.28871304,189.98,189.93,3.12]
[1735267345756,2.6358,189.96,189.92,144.09012237]
[1735267346060,4.8244,190.09,189.92,144.09012237]
[1735267346061,7.65311304,189.97,189.92,144.09012237]
[1735267346861,10.28881304,189.97,189.92,146.72642237]
[1735267347256,7.65311304,189.97,189.92,144.09012237]
[1735267347453,2.6359,189.95,189.92,144.09012237]
[1735267347858,10.28901304,189.95,189.92,144.09012237]
[1735267348565,2.6361,189.93,189.92,144.09012237]
[1735267348864,10.28921304,189.93,189.88,5.7567]
[1735267350057,2.6363,189.92,189.88,2.6367]
[1735267350364,2.6363,189.92,189.86,13.41011304]
[1735267350556,7.65311304,189.93,189.86,10.29011304]
[1735267350758,7.65311304,189.91,189.86,2.637]
[1735267352462,2.6366,189.9,189.86,2.637]
[1735267352759,7.65311304,189.91,189.85,3.12]
[1735267353159,2.6369,189.88,189.81,1.614]
[1735267353364,7.65311304,189.89,189.81,9.26711304]
[1735267353556,7.65311304,189.89,189.82,3.12]
[1735267353761,7.65311304,189.87,189.82,3.12]
[1735267354466,10.29011304,189.87,189.83,2.6375]
[1735267354867,10.29011304,189.87,189.82,3.12]
[1735267355371,10.29011304,189.87,189.82,2.6376]
[1735267355970,10.29041304,189.85,189.81,3.12]
[1735267356170,7.65311304,189.83,189.74,3.2525]
[1735267356368,7.65311304,189.83,189.76,7.65311304]
[1735267357271,7.65311304,189.83,189.78,2.6382]
[1735267357272,2.6378,189.82,189.78,2.6382]
[1735267359267,2.6373,189.85,189.8,2.6379]
[1735267359466,7.65311304,189.84,189.8,2.6379]
[1735267360174,2.6373,189.85,189.8,2.6379]
[1735267360374,7.65311304,189.84,189.8,2.6379]
[1735267362968,7.65311304,189.84,189.79,3.12]
[1735267363174,2.6376,189.83,189.79,3.12]
[1735267363369,7.65311304,189.84,189.79,3.12]
[1735267363575,7.65311304,189.82,189.76,3.12]
[1735267363772,10.29111304,189.8,189.75,2.6385]
[1735267364370,7.65311304,189.8,189.75,2.6385]
[1735267364574,2.6381,189.79,189.75,2.6385]
[1735267364773,7.65311304,189.8,189.75,2.6385]
[1735267365074,10.29121304,189.8,189.75,2.6385]
[1735267365576,7.65311304,189.8,189.75,2.6385]
[1735267365773,2.6381,189.79,189.75,2.6385]
[1735267368681,7.65311304,189.8,189.74,3.12]
[1735267368876,2.6385,189.76,189.72,2.639]
[1735267369079,2.6385,189.76,189.72,5.759]
[1735267369278,7.65311304,189.76,189.7,7.65311304]
[1735267369480,7.65311304,189.76,189.71,5.7592]
[1735267369481,2.6387,189.75,189.71,5.7592]
[1735267372677,7.65311304,189.76,189.69,2.6394]
[1735267372977,3.12,189.81,189.68,3.12]
[1735267372978,7.65311304,189.74,189.68,3.12]
[1735267373184,7.65311304,189.74,189.69,3.12]
[1735267373382,10.29191304,189.74,189.69,5.7593]
[1735267373881,10.29191304,189.74,189.69,2.6393]
[1735267374087,3.12,189.81,189.63,3.3353]
[1735267374088,7.65311304,189.72,189.63,3.3353]
[1735267374382,7.65311304,189.7,189.64,3.12]
[1735267374883,7.65311304,189.7,189.66,2.6398]
[1735267375483,2.6393,189.71,189.65,7.65311304]
[1735267375683,2.6393,189.71,189.67,2.6397]
[1735267380487,1.6772,189.75,189.69,7.65311304]
[1735267380680,7.65311304,189.76,189.69,10.77311304]
[1735267381081,10.29171304,189.75,189.69,10.77311304]
[1735267381477,7.65311304,189.75,189.69,10.77311304]
[1735267381781,7.65311304,189.79,189.71,7.65311304]
[1735267381983,7.65311304,189.77,189.7,2.6392]
[1735267382287,7.65311304,189.73,189.69,3.12]
[1735267382587,7.65311304,189.73,189.7,2.6393]
[1735267383287,2.6387,189.75,189.7,2.6393]
[1735267383288,10.29181304,189.75,189.7,2.6393]
[1735267384187,7.65311304,189.75,189.69,3.12]
[1735267384389,7.65311304,189.77,189.71,7.65311304]
[1735267384793,10.29151304,189.77,189.72,2.6389]
[1735267389889,7.65311304,189.77,189.72,2.6389]
[1735267390082,2.6385,189.76,189.72,2.6389]
[1735267391491,2.6387,189.75,189.7,2.6392]
[1735267391992,7.65311304,189.75,189.68,3.12]
[1735267393397,2.639,189.73,189.69,2.6395]
[1735267395998,10.29211304,189.73,189.69,2.6395]
[1735267398002,2.639,189.73,189.69,2.6395]
[1735267398503,7.65311304,189.75,189.68,3.12]
[1735267398704,2.6391,189.72,189.68,5.7596]
[1735267399206,2.6392,189.71,189.68,3.12]
[1735267399498,7.65311304,189.71,189.64,28.92777937]
[1735267399696,7.65311304,189.71,189.65,3.12]
[1735267399894,2.6395,189.69,189.65,5.7599]
[1735267400108,2.6395,189.69,189.65,3.12]
[1735267401100,7.65311304,189.69,189.63,10.98841304]
[1735267401402,7.65311304,189.69,189.64,3.12]
[1735267401794,7.65311304,189.69,189.63,10.98841304]
[1735267401999,7.65311304,189.69,189.64,3.12]
[1735267402405,10.29261304,189.69,189.65,2.64]
[1735267403497,7.65311304,189.67,189.64,2.6401]
[1735267404906,7.65311304,189.67,189.65,2.64]
[1735267405905,10.29261304,189.69,189.65,2.64]
[1735267408302,2.6396,189.68,189.64,2.6402]
[1735267409407,7.65311304,189.67,189.63,3.12]
[1735267409704,7.65311304,189.65,189.62,225.27110163]
[1735267410412,10.29321304,189.65,189.62,225.27110163]
[1735267421822,2.6402,189.64,189.62,225.27110163]
[1735267423322,2.6402,189.64,189.6,5.7606]
[1735267425418,2.6403,189.63,189.6,2.6406]
[1735267426924,2.6402,189.64,189.6,2.6406]
[1735267431534,2.6398,189.67,189.61,2.6405]
[1735267431728,72.22154328,189.7,189.61,7.65311304]
[1735267431928,7.65311304,189.68,189.61,7.65311304]
[1735267432226,10.29281304,189.68,189.63,2.6403]
[1735267433025,10.29281304,189.68,189.64,2.6401]
[1735267435028,2.6407,189.61,189.57,28.92777937]
[1735267435530,2.6407,189.61,189.58,7.23194484]
[1735267437333,2.6407,189.61,189.57,5.7611]
[1735267448740,7.65311304,189.62,189.57,5.7611]
[1735267448741,7.65311304,189.64,189.58,7.65311304]
[1735267449137,75.34154328,189.7,189.58,7.65311304]
[1735267449636,7.65311304,189.64,189.58,7.65311304]
[1735267450238,10.29331304,189.64,189.6,2.6406]
[1735267452141,2.6402,189.64,189.6,2.6406]
[1735267452441,10.29331304,189.64,189.6,2.6406]
[1735267459252,10.29331304,189.64,189.61,2.6405]
[1735267461544,72.22154328,189.7,189.59,10.77311304]
[1735267461749,79.87465632,189.7,189.63,7.65311304]
[1735267461944,72.22154328,189.7,189.64,3.12]
[1735267462146,79.87465632,189.7,189.64,3.12]
[1735267462539,2.6395,189.69,189.65,2.64]
[1735267463247,2.6401,189.65,189.61,2.6405]
[1735267463441,72.22154328,189.7,189.6,3.12]
[1735267463442,7.65311304,189.63,189.6,3.12]
[1735267464248,7.65311304,189.61,189.58,32.59943981]
[1735267465050,7.65311304,189.61,189.58,3.67166044]
[1735267468051,7.65311304,189.61,189.58,6.31266044]
[1735267471749,7.65311304,189.61,189.57,3.12]
[1735267471957,2.6407,189.6,189.57,3.12]
[1735267472754,7.65311304,189.61,189.56,95.08080318]
[1735267472956,10.29371304,189.61,189.56,95.08080318]
[1735267478360,2.6407,189.6,189.56,95.08080318]
[1735267478558,7.65311304,189.59,189.56,95.08080318]
[1735267479854,2.6407,189.6,189.56,95.08080318]
[1735267480049,10.29381304,189.6,189.56,95.08080318]
[1735267482055,75.34154328,189.7,189.56,92.43960318]
[1735267482259,7.65311304,189.61,189.56,92.43960318]
[1735267482558,7.65311304,189.61,189.55,3.12]
[1735267482761,7.65311304,189.61,189.58,2.6409]
[1735267483463,7.65311304,189.61,189.55,3.12]
[1735267483752,2.6407,189.6,189.56,2.6411]
[1735267484354,7.65311304,189.59,189.56,2.6411]
[1735267487059,10.29401304,189.59,189.55,5.7614]
[1735267490161,10.29401304,189.59,189.56,2.6413]
[1735267492265,7.65311304,189.59,189.56,2.6413]
[1735267493565,2.6408,189.6,189.56,2.6413]
[1735267493767,7.65311304,189.59,189.56,2.6413]
[1735267500166,7.65311304,189.59,189.54,3.12]
[1735267500367,7.65311304,189.57,189.54,5.7614]
[1735267500970,7.65311304,189.57,189.54,2.6414]
[1735267501378,7.65311304,189.57,189.55,2.6414]
[1735267504377,2.641,189.58,189.55,2.6414]
[1735267504576,10.29411304,189.58,189.55,2.6414]
[1735267505670,2.6408,189.6,189.56,2.6413]
[1735267505881,4.7761,189.64,189.54,7.65311304]
[1735267506273,7.65311304,189.61,189.58,2.6409]
[1735267508778,4.7761,189.64,189.56,3.12]
[1735267509083,7.65311304,189.65,189.58,7.65311304]
[1735267509384,7.65311304,189.63,189.56,10.77311304]
[1735267510583,72.22154328,189.7,189.59,2.6408]
[1735267510779,7.65311304,189.63,189.56,10.77311304]
[1735267511086,7.65311304,189.63,189.58,2.641]
[1735267511285,7.65311304,189.63,189.56,10.77311304]
[1735267512183,2.6402,189.64,189.59,2.6408]
[1735267512385,7.65311304,189.63,189.59,2.6408]
[1735267513384,2.6402,189.64,189.59,2.6408]
[1735267513785,7.65311304,189.63,189.59,2.6408]
[1735267513977,75.34154328,189.7,189.56,10.77311304]
[1735267514176,7.65311304,189.64,189.61,2.6405]
[1735267516790,2.6399,189.67,189.63,2.6403]
[1735267516987,7.65311304,189.65,189.63,2.6403]
[1735267517184,4.8612,189.72,189.62,7.65311304]
[1735267517492,7.65311304,189.69,189.62,7.65311304]
[1735267517895,7.65311304,189.65,189.63,2.6403]
[1735267518193,7.65311304,189.65,189.56,3.2267]
[1735267518194,7.65311304,189.65,189.59,7.65311304]
[1735267518490,7.65311304,189.65,189.6,3.12]
[1735267520389,7.65311304,189.65,189.62,2.6404]
[1735267522695,7.65311304,189.65,189.6,3.12]
[1735267522896,10.29311304,189.65,189.6,5.7606]
[1735267523493,7.65311304,189.63,189.6,3.12]
[1735267523694,7.65311304,189.61,189.6,3.12]
[1735267524196,7.65311304,189.61,189.58,2.641]
[1735267524399,10.29371304,189.61,189.57,5.7611]
[1735267527300,10.29371304,189.61,189.57,2.6411]
[1735267527488,7.65311304,189.59,189.52,92.4604617]
[1735267527694,7.65311304,189.57,189.53,3.12]
[1735267528700,7.65311304,189.57,189.53,5.7616]
[1735267530501,7.65311304,189.57,189.54,2.6415]
[1735267530700,7.65311304,189.57,189.53,3.12]
[1735267531101,7.65311304,189.57,189.54,2.6415]
[1735267532701,10.29431304,189.57,189.53,5.7617]
[1735267542211,7.65311304,189.57,189.53,3.12]
[1735267542407,7.65311304,189.55,189.48,1.5346]
[1735267542614,7.65311304,189.53,189.49,3.12]
[1735267543413,4.6855,189.64,189.48,92.48512252]
[1735267543414,7.65311304,189.51,189.48,92.48512252]
[1735267543611,7.65311304,189.51,189.48,95.12752252]
[1735267543807,7.65311304,189.49,189.48,92.48512252]
[1735267547920,7.65311304,189.49,189.47,2.6425]
[1735267548716,2.642,189.51,189.47,2.6425]
[1735267548921,7.65311304,189.5,189.47,2.6425]
[1735267549317,72.27090603,189.55,189.46,3.12]
[1735267549523,72.27090603,189.55,189.48,7.65311304]
[1735267549722,7.65311304,189.56,189.5,7.65311304]
[1735267549919,7.65311304,189.56,189.51,3.12]
[1735267551123,7.65311304,189.56,189.53,2.6416]
[1735267551728,7.65311304,189.56,189.54,2.6415]
[1735267552027,10.29411304,189.58,189.54,2.6415]
[1735267552824,1.573,189.63,189.54,7.65311304]
[1735267553124,7.65311304,189.64,189.58,7.65311304]
[1735267553321,7.65311304,189.64,189.62,2.6404]
[1735267553828,7.65311304,189.66,189.62,2.6404]
[1735267554127,7.65311304,189.66,189.6,7.65311304]
[1735267554328,7.65311304,189.66,189.63,2.6402]
[1735267554918,7.65311304,189.66,189.59,3.12]
[1735267555129,7.65311304,189.66,189.61,2.6405]
[1735267555130,10.29301304,189.66,189.61,2.6405]
[1735267556123,7.65311304,189.64,189.61,2.6405]
[1735267556629,2.6399,189.66,189.61,2.6405]
[1735267556833,7.65311304,189.65,189.61,2.6405]
[1735267561431,7.65311304,189.63,189.6,2.6407]
[1735267561627,72.2175103,189.7,189.59,3.12]
[1735267561833,7.65311304,189.65,189.59,3.12]
[1735267563135,7.65311304,189.65,189.61,2.6405]
[1735267563936,7.65311304,189.63,189.58,92.43078787]
[1735267564125,7.65311304,189.61,189.58,92.43078787]
[1735267564326,10.29371304,189.61,189.58,92.43078787]
[1735267564533,7.65311304,189.63,189.58,92.43078787]
[1735267565531,2.6404,189.62,189.58,92.43078787]
[1735267566631,2.6406,189.61,189.58,92.43078787]
[1735267566837,7.65311304,189.59,189.57,3.12]
[1735267567137,7.65311304,189.59,189.55,2.6414]
[1735267567327,7.65311304,189.57,189.54,6.79421312]
[1735267567636,7.65311304,189.57,189.54,3.67421312]
[1735267569135,7.65311304,189.57,189.52,3.12]
[1735267569529,10.29431304,189.57,189.52,5.7618]
[1735267570640,10.29431304,189.57,189.52,2.6418]
[1735267573331,2.6413,189.56,189.52,2.6418]
[1735267576830,7.65311304,189.57,189.52,2.6418]
[1735267577140,7.65311304,189.61,189.54,7.65311304]
[1735267577340,72.2175103,189.7,189.54,7.65311304]
[1735267577541,7.65311304,189.62,189.54,7.65311304]
[1735267578241,10.29361304,189.62,189.57,2.641]
[1735267578442,10.29361304,189.62,189.58,3.12]
[1735267578838,2.6406,189.61,189.58,3.12]
[1735267579042,7.65311304,189.62,189.58,3.12]
[1735267579641,2.6407,189.61,189.58,3.12]
[1735267580144,10.29361304,189.62,189.58,3.12]
[1735267580645,8.96091304,189.62,189.58,3.12]
[1735267582441,7.65311304,189.6,189.58,3.12]
[1735267587339,2.6408,189.59,189.58,3.12]
[1735267587541,7.65311304,189.6,189.54,5.7615]
[1735267587839,7.65311304,189.57,189.54,3.12]
[1735267588741,10.29431304,189.57,189.54,3.12]
[1735267588943,7.65311304,189.57,189.54,3.12]
[1735267589940,2.6414,189.55,189.54,3.12]
[1735267590346,7.65311304,189.55,189.49,92.46963751]
[1735267590549,2.6417,189.53,189.5,3.12]
[1735267590846,2.6417,189.53,189.49,95.11183751]
[1735267590847,7.65311304,189.53,189.49,92.46963751]
[1735267591042,7.65311304,189.53,189.5,3.12]
[1735267591845,2.6421,189.5,189.49,92.46963751]
[1735267592442,2.6423,189.49,189.46,3.12]
[1735267592638,10.29541304,189.49,189.45,3.12]
[1735267593648,2.6424,189.48,189.45,3.12]
[1735267593952,7.65311304,189.49,189.45,3.12]
[1735267595442,10.29531304,189.49,189.45,5.7628]
[1735267596145,2.6422,189.49,189.45,5.7628]
[1735267598251,2.6422,189.49,189.45,3.12]
[1735267598946,10.29531304,189.49,189.45,3.12]
[1735267600151,72.27661259,189.55,189.45,10.77311304]
[1735267600350,7.65311304,189.54,189.47,7.65311304]
[1735267600851,7.65311304,189.54,189.49,2.6422]
[1735267601057,7.65311304,189.54,189.5,3.12]
[1735267601448,10.29471304,189.54,189.5,5.7621]
[1735267601852,10.29471304,189.54,189.5,3.12]
[1735267602154,7.65311304,189.54,189.5,3.12]
[1735267602552,2.6417,189.53,189.5,3.12]
[1735267603447,7.65311304,189.54,189.5,3.12]
[1735267603649,2.6414,189.56,189.5,3.12]
[1735267603954,7.65311304,189.57,189.5,3.12]
[1735267605247,4.8973,189.6,189.5,5.762]
[1735267605248,2.6416,189.54,189.5,5.762]
[1735267609055,2.6416,189.54,189.5,2.642]
[1735267609264,2.6416,189.54,189.5,5.762]
[1735267616360,7.65311304,189.55,189.5,3.12]
[1735267616560,2.6417,189.53,189.5,3.12]
[1735267618262,7.65311304,189.51,189.47,3.12]
[1735267618469,10.29521304,189.51,189.47,3.12]
[1735267619668,10.29521304,189.51,189.46,2.6425]
[1735267619861,10.29521304,189.51,189.47,3.12]
[1735267620667,10.29521304,189.51,189.47,5.7625]
[1735267621170,2.6418,189.52,189.47,5.7625]
[1735267623273,7.65311304,189.51,189.47,5.7625]
[1735267623474,10.29511304,189.51,189.47,5.7625]
[1735267625581,2.6421,189.5,189.47,3.12]
[1735267626181,2.6424,189.48,189.43,31.57077937]
[1735267626383,2.6424,189.48,189.44,3.12]
[1735267626677,2.6424,189.48,189.44,5.7629]
[1735267626877,7.65311304,189.49,189.44,5.7629]
[1735267627079,7.65311304,189.49,189.44,3.12]
[1735267628386,7.65311304,189.49,189.45,2.6428]
[1735267630375,2.6422,189.5,189.45,2.6428]
[1735267631179,72.28057451,189.53,189.48,7.65311304]
[1735267631385,72.28057451,189.53,189.49,3.12]
[1735267631983,72.28057451,189.53,189.49,5.7622]
[1735267632185,7.65311304,189.52,189.49,3.12]
[1735267632578,7.65311304,189.5,189.46,7.23194484]
[1735267632779,7.65311304,189.48,189.44,3.12]
[1735267633788,2.6425,189.47,189.44,3.12]
[1735267634087,7.65311304,189.48,189.43,7.65311304]
[1735267634385,7.65311304,189.48,189.44,3.12]
[1735267635577,10.29551304,189.48,189.44,5.7629]
[1735267639196,10.29551304,189.48,189.44,2.6429]
[1735267639986,2.6425,189.47,189.43,5.763]